fUSD/lending_fUSD_20240922
["ID","MTS","AMOUNT","RATE_DAILY","PERIOD"]
[338900472,1727039432359,-450.44936041,0.00012073,2]
[338900473,1727039432371,-1328.39751874,0.00012073,2]
[338900474,1727039432380,-152.51,0.00012074,2]
[338900475,1727039432390,-197.44636803,0.00012074,2]
[338900476,1727039432399,-152.23,0.00012074,2]
[338900477,1727039432408,-152.23,0.00012074,2]
[338900478,1727039432418,-1688.54,0.00012075,2]
[338900479,1727039432427,-499.99,0.00012075,2]
[338900480,1727039432437,-197.44636803,0.00012075,2]
[338900481,1727039432446,-152.23,0.00012075,2]
[338900482,1727039432455,-152.23,0.00012075,2]
[338900483,1727039432465,-152.23,0.00012075,2]
[338900484,1727039432474,-152.23,0.00012075,2]
[338900485,1727039432484,-152.23,0.00012075,2]
[338900486,1727039432494,-152.23,0.00012075,2]
[338900487,1727039432503,-152.23,0.00012075,2]
[338900488,1727039432513,-152.23,0.00012075,2]
[338900489,1727039432522,-152.23,0.00012075,2]
[338900491,1727039432531,-152.23,0.00012075,2]
[338900493,1727039432541,-152.23,0.00012075,2]
[338900494,1727039432550,-152.23,0.00012075,2]
[338900495,1727039432559,-152.23,0.00012075,2]
[338900496,1727039432568,-152.23,0.00012075,2]
[338900497,1727039432577,-152.23,0.00012075,2]
[338900498,1727039432586,-152.23,0.00012075,2]
[338900499,1727039432595,-152.23,0.00012075,2]
[338900500,1727039432605,-2149.70347857,0.00012076,2]
[338900501,1727039432616,-966.03305,0.00012076,2]
[338900502,1727039432628,-277.9595,0.00012076,2]
[338900503,1727039432641,-146.24988033,0.00012076,2]
[338900504,1727039432650,-617.50070255,0.00012076,2]
[338900505,1727039432662,-2202.67150183,0.00012076,2]
[338900506,1727039432673,-1009.07328042,0.00012076,2]
[338900507,1727039432682,-5988.14,0.00012076,2]
[338900508,1727039432692,-6978.29,0.00012076,2]
[338900509,1727039432701,-7364.34976742,0.00012077,2]
[338900510,1727039432721,-8335.34694734,0.00012077,2]
[338900511,1727039432731,-567.70566716,0.00012079,2]
[338900512,1727039432740,-500.0,0.00012079,2]
[338900513,1727039432750,-500.0,0.00012079,2]
[338900514,1727039432759,-500.0,0.00012079,2]
[338900515,1727039432771,-500.0,0.00012079,2]
[338900516,1727039432780,-201.63778976,0.00012079,2]
[338900517,1727039432789,-438.61,0.00012079,2]
[338900518,1727039432798,-193.27001946,0.00012079,2]
[338900519,1727039432807,-15122.46,0.0001208,2]
[338900520,1727039432817,-111143.00472547,0.0001208,2]
[338900521,1727039432827,-1205.0,0.0001208,2]
[338900522,1727039432839,-4384.59,0.0001208,2]
[338900523,1727039435157,300.0,0.00011481,2]
[338900528,1727039438398,-650790.99760033,0.0001208,2]
[338900529,1727039438454,-2074.28288858,0.0001208,2]
[338900530,1727039438466,-5020.75744016,0.0001208,2]
[338900531,1727039438723,-538.27659695,0.0001208,2]
[338900532,1727039438735,-534.4333347,0.0001208,2]
[338900533,1727039438781,-483.7355491,0.0001208,2]
[338900542,1727039440358,-3001.85766923,0.0001208,2]
[338900543,1727039440415,-313.427364,0.0001208,2]
[338900544,1727039440473,-2837.10153645,0.0001208,2]
[338900545,1727039440484,-353.1339839,0.0001208,2]
[338900546,1727039440495,-1266.212,0.0001208,2]
[338900547,1727039440532,-2074.542965,0.0001208,2]
[338900566,1727039443306,-8823.99346952,0.0001208,2]
[338900567,1727039443318,-3972.09929284,0.0001208,2]
[338900568,1727039443328,-1118.97,0.0001208,2]
[338900569,1727039443339,-1377.53454,0.0001208,2]
[338900570,1727039443350,-264.01139067,0.0001208,2]
[338900571,1727039443419,-344.59647188,0.0001208,2]
[338900572,1727039443431,-407.88537412,0.0001208,2]
[338900573,1727039443443,-2551.14997692,0.0001208,2]
[338900574,1727039443455,-614.29174979,0.0001208,2]
[338900575,1727039443476,-20935.32554142,0.0001208,2]
[338900576,1727039443487,-2248.95674392,0.0001208,2]
[338900577,1727039443532,-12988.4578671,0.0001208,2]
[338900578,1727039443543,-510.33427452,0.0001208,2]
[338900586,1727039446198,-1390.08845816,0.0001208,2]
[338900587,1727039446210,-611.804,0.0001208,2]
[338900588,1727039446224,-1869.3662922,0.0001208,2]
[338900589,1727039446236,-1240.6564181,0.0001208,2]
[338900590,1727039446258,-6372.4344052,0.0001208,2]
[338900591,1727039446316,-613.24446808,0.0001208,2]
[338900592,1727039446329,-292.9999966,0.0001208,2]
[338900593,1727039446341,-3564.74835214,0.0001208,2]
[338900594,1727039446354,-260.0,0.0001208,2]
[338900595,1727039446427,-403.53386833,0.0001208,2]
[338900596,1727039446441,-530.6,0.0001208,2]
[338900597,1727039446454,-1321.4022825,0.0001208,2]
[338900603,1727039448462,150.75966,0.0001186,2]
[338900604,1727039460310,150.0,0.0001193,2]
[338900605,1727039461100,767.27540677,0.0001196,2]
[338900606,1727039463472,199.02,0.00011591,2]
[338900607,1727039475671,3060.91323503,0.00011687,2]
[338900608,1727039491249,1500.0,0.00011874,2]
[338900609,1727039509435,7500.0,0.00011985,2]
[338900610,1727039510999,250.0,0.00011267,2]
[338900611,1727039517843,2841.1782612,0.00011992,2]
[338900612,1727039522105,250.0,0.0001113,2]
[338900613,1727039529713,155.94268703,0.00011985,2]
[338900614,1727039538535,321.98315079,0.00011985,2]
[338900615,1727039590541,200.74567328,0.00011992,2]
[338900616,1727039633014,2841.17826118,0.00011992,2]
[338900617,1727039638837,1071.49066039,0.00011992,2]
[338900618,1727039643570,174.82810917,0.00011982,2]
[338900619,1727039648513,174.82810916,0.00011992,2]
[338900620,1727039652067,200.0,0.00011189,2]
[338900621,1727039659998,182.25,0.00010959,2]
[338900622,1727039699321,256.41,8.931e-05,2]
[338900626,1727039757389,618.66,0.00011311,2]
[338900627,1727039844012,291.25,0.00011194,2]
[338900628,1727039888462,506.51351912,0.00011976,2]
[338900629,1727039893325,506.51351904,0.00011977,2]
[338900630,1727039898249,506.51351904,0.00011978,2]
[338900631,1727039903276,506.51351904,0.0001198,2]
[338900632,1727039908312,506.51351904,0.00011981,2]
[338900633,1727039913329,506.51351904,0.00011982,2]
[338900634,1727039913884,225.03094057,0.00011985,2]
[338900635,1727039918282,506.51351904,0.00011983,2]
[338900636,1727039918854,225.03094055,0.00011986,2]
[338900637,1727039923272,506.51351904,0.00011985,2]
[338900638,1727039923821,225.03094055,0.00011986,2]
[338900639,1727039928288,506.51351904,0.00011986,2]
[338900640,1727039928820,225.03094055,0.00011987,2]
[338900641,1727039933251,506.51351904,0.00011987,2]
[338900642,1727039933853,225.03094055,0.00011987,2]
[338900643,1727039971906,248.29,9.304e-05,2]
[338900644,1727039972101,248.29,0.00011568,2]
[338900645,1727040031773,250.0,0.00011222,2]
[338900646,1727040064981,150.0,0.00011938,2]
[338900647,1727040065038,150.0,0.0001203,2]
[338900648,1727040082266,150.0,0.00011924,2]
[338900649,1727040082316,150.0,0.00011974,2]
[338900650,1727040082372,150.0,0.00011814,2]
[338900651,1727040082433,150.0,0.00011923,2]
[338900652,1727040082480,150.0,0.00012014,2]
[338900653,1727040082597,296.87106809,0.00011977,2]
[338900654,1727040095856,250.0,0.0001112,2]
[338900655,1727040125237,150.0,0.00011934,2]
[338900656,1727040125414,150.0,0.00011881,2]
[338900657,1727040125469,150.0,0.00011883,2]
[338900658,1727040139018,213.11250366,0.00011831,2]
[338900659,1727040186327,375.55,0.00011105,2]
[338900660,1727040201747,185134.0,0.00012,2]
[338900661,1727040207229,840.0,0.00011105,2]
[338900662,1727040284378,1050.0,0.00011,2]
[338900663,1727040327958,11511.0,0.00012,3]
[338900665,1727040401876,182.32,0.0001112,2]
[338900666,1727040403482,500.0,9.044e-05,2]
[338900668,1727040443507,631.36,8.249e-05,2]
[338900669,1727040443579,500.0,8.249e-05,2]
[338900670,1727040457363,300.0,0.000112,4]
[338900671,1727040459479,700.0,0.000113,4]
[338900673,1727040461582,1000.0,0.000114,4]
[338900674,1727040463690,1400.0,0.000115,4]
[338900675,1727040465816,1700.0,0.000116,4]
[338900676,1727040467962,300.0,0.000117,4]
[338900677,1727040470091,300.0,0.000118,4]
[338900678,1727040472762,300.0,0.000119,4]
[338900679,1727040484459,11511.0,0.00012,5]
[338900680,1727040485925,500.0,8.249e-05,2]
[338900681,1727040486414,500.0,8.249e-05,2]
[338900682,1727040486561,200.0,8.249e-05,2]
[338900683,1727040486746,500.0,8.249e-05,2]
[338900684,1727040487005,200.0,8.249e-05,2]
[338900685,1727040487088,500.0,8.249e-05,2]
[338900686,1727040487407,200.0,8.249e-05,2]
[338900687,1727040487436,500.0,8.249e-05,2]
[338900688,1727040487772,200.0,8.249e-05,2]
[338900689,1727040487800,500.0,8.249e-05,2]
[338900690,1727040488137,500.0,8.249e-05,2]
[338900691,1727040488451,500.0,8.249e-05,2]
[338900693,1727040488660,252.0,8.249e-05,2]
[338900694,1727040488761,500.0,8.249e-05,2]
[338900695,1727040489124,500.0,8.249e-05,2]
[338900696,1727040489450,500.0,8.249e-05,2]
[338900697,1727040489785,500.0,8.249e-05,2]
[338900698,1727040490114,500.0,8.249e-05,2]
[338900699,1727040490428,500.0,8.249e-05,2]
[338900700,1727040490735,500.0,8.249e-05,2]
[338900701,1727040491044,500.0,8.249e-05,2]
[338900702,1727040491361,500.0,8.249e-05,2]
[338900703,1727040491682,500.0,8.249e-05,2]
[338900704,1727040492580,500.0,8.249e-05,2]
[338900705,1727040492907,500.0,8.249e-05,2]
[338900706,1727040493232,500.0,8.249e-05,2]
[338900707,1727040493554,500.0,8.249e-05,2]
[338900708,1727040493870,500.0,8.249e-05,2]
[338900709,1727040494195,500.0,8.249e-05,2]
[338900710,1727040494714,500.0,8.249e-05,2]
[338900711,1727040494997,500.0,8.249e-05,2]
[338900712,1727040495366,500.0,8.249e-05,2]
[338900713,1727040495691,500.0,8.249e-05,2]
[338900714,1727040496033,500.0,8.249e-05,2]
[338900715,1727040496886,500.0,8.249e-05,2]
[338900716,1727040497230,500.0,8.249e-05,2]
[338900717,1727040497547,500.0,8.249e-05,2]
[338900718,1727040498041,500.0,8.249e-05,2]
[338900719,1727040498207,500.0,8.249e-05,2]
[338900720,1727040498520,500.0,8.249e-05,2]
[338900721,1727040498872,500.0,8.249e-05,2]
[338900722,1727040499192,500.0,8.249e-05,2]
[338900723,1727040499515,500.0,8.249e-05,2]
[338900724,1727040499830,500.0,8.249e-05,2]
[338900725,1727040500177,500.0,8.249e-05,2]
[338900726,1727040500587,500.0,8.249e-05,2]
[338900727,1727040500938,500.0,8.249e-05,2]
[338900728,1727040501295,500.0,8.249e-05,2]
[338900729,1727040502203,500.0,8.249e-05,2]
[338900730,1727040502538,500.0,8.249e-05,2]
[338900731,1727040502872,500.0,8.249e-05,2]
[338900732,1727040503195,500.0,8.249e-05,2]
[338900733,1727040503518,500.0,8.249e-05,2]
[338900734,1727040503833,500.0,8.249e-05,2]
[338900735,1727040504140,500.0,8.249e-05,2]
[338900736,1727040504470,500.0,8.249e-05,2]
[338900737,1727040504786,500.0,8.249e-05,2]
[338900738,1727040505109,500.0,8.249e-05,2]
[338900739,1727040505427,500.0,8.249e-05,2]
[338900741,1727040505828,500.0,8.249e-05,2]
[338900742,1727040506123,500.0,8.249e-05,2]
[338900743,1727040506570,500.0,8.249e-05,2]
[338900744,1727040506911,500.0,8.249e-05,2]
[338900745,1727040507215,500.0,8.249e-05,2]
[338900746,1727040507542,500.0,8.249e-05,2]
[338900747,1727040508635,500.0,8.249e-05,2]
[338900748,1727040508796,500.0,8.249e-05,2]
[338900749,1727040509126,500.0,8.249e-05,2]
[338900750,1727040509432,500.0,8.249e-05,2]
[338900751,1727040509893,500.0,8.249e-05,2]
[338900752,1727040510319,500.0,8.249e-05,2]
[338900753,1727040510758,500.0,8.249e-05,2]
[338900754,1727040511655,500.0,8.249e-05,2]
[338900755,1727040511985,500.0,8.249e-05,2]
[338900756,1727040512327,500.0,8.249e-05,2]
[338900757,1727040512641,500.0,8.249e-05,2]
[338900758,1727040512965,500.0,8.249e-05,2]
[338900759,1727040513324,500.0,8.249e-05,2]
[338900760,1727040513643,500.0,8.249e-05,2]
[338900761,1727040513957,500.0,8.249e-05,2]
[338900762,1727040514287,500.0,8.249e-05,2]
[338900763,1727040514608,500.0,8.249e-05,2]
[338900764,1727040514934,500.0,8.249e-05,2]
[338900765,1727040515260,500.0,8.249e-05,2]
[338900766,1727040515578,500.0,8.249e-05,2]
[338900767,1727040515893,550.0,8.249e-05,2]
[338900771,1727040548955,2026.46577604,0.0001198,2]
[338900772,1727040549328,2026.46577603,0.00011984,2]
[338900790,1727040565360,236.44,9.183e-05,2]
[338900791,1727040565706,236.44,0.00011446,2]
[338900792,1727040570085,350.79821698,0.00011985,2]
[338900794,1727040630446,347.54,0.0001112,2]
[338900798,1727040631363,-604.51167939,0.00012035,2]
[338900800,1727040631375,-1835.48832061,0.00012035,2]
[338900801,1727040631384,-174.66120389,0.00012043,2]
[338900802,1727040631393,-150.0,0.00012049,2]
[338900803,1727040631402,-150.0,0.00012054,2]
[338900804,1727040631411,-216.30053767,0.00012063,2]
[338900805,1727040631420,-153.42,0.0001207,2]
[338900806,1727040631430,-531.84,0.00012073,2]
[338900807,1727040631439,-189.45,0.00012073,2]
[338900808,1727040631448,-150.0,0.00012073,2]
[338900809,1727040631458,-1809.72670948,0.00012074,2]
[338900810,1727040631819,-2038.91856182,0.00012074,2]
[338900811,1727040631828,-53533.84238033,0.00012074,2]
[338900812,1727040631840,-432.92,0.00012074,2]
[338900813,1727040631851,-919.70999,0.00012074,2]
[338900814,1727040631863,-258.45333536,0.00012074,2]
[338900815,1727040631874,-392.16304759,0.00012074,2]
[338900816,1727040631887,-4077.19498662,0.00012074,2]
[338900817,1727040631896,-10092.3913388,0.00012074,2]
[338900818,1727040631905,-9499.2376776,0.00012074,2]
[338900819,1727040631914,-2512.3567213,0.00012074,2]
[338900820,1727040631925,-336.8740517,0.00012074,2]
[338900821,1727040631934,-5193.48,0.00012075,2]
[338900822,1727040631944,-499.99,0.00012075,2]
[338900823,1727040631954,-153.42,0.00012075,2]
[338900824,1727040631963,-2462.79192693,0.00012075,2]
[338900825,1727040631972,-150.99,0.00012075,2]
[338900826,1727040631981,-29999.99,0.00012075,2]
[338900827,1727040631991,-5347.72,0.00012075,2]
[338900828,1727040632001,-29613.12,0.00012075,2]
[338900829,1727040632010,-19594.92,0.00012075,2]
[338900830,1727040632019,-3487.29,0.00012075,2]
[338900831,1727040632029,-351.75,0.00012075,2]
[338900832,1727040632038,-3496.4909639,0.00012076,2]
[338900833,1727040632048,-3144.3366565,0.00012076,2]
[338900834,1727040632057,-54159.5262026,0.00012076,2]
[338900835,1727040632067,-4699.15929279,0.00012076,2]
[338900836,1727040632078,-784.98522457,0.00012076,2]
[338900837,1727040632094,-347.96815075,0.00012076,2]
[338900838,1727040632106,-300.0,0.00012076,2]
[338900839,1727040632117,-6200.37173994,0.00012076,2]
[338900840,1727040632127,-18906.20812642,0.00012076,2]
[338900841,1727040632138,-1160.00238867,0.00012076,2]
[338900842,1727040632149,-3282.66146261,0.00012076,2]
[338900843,1727040632160,-10788.88930125,0.00012076,2]
[338900844,1727040632171,-404.4999995,0.00012076,2]
[338900845,1727040632182,-355.41834579,0.00012076,2]
[338900846,1727040632193,-1474.60463291,0.00012076,2]
[338900847,1727040632202,-1985.62307599,0.00012076,2]
[338900848,1727040632213,-515.63660001,0.00012076,2]
[338900850,1727040637515,-6014.34610999,0.00012076,2]
[338900851,1727040637623,-662.47485231,0.00012076,2]
[338900852,1727040637633,-212.36179093,0.00012076,2]
[338900853,1727040637644,-759.24899239,0.00012076,2]
[338900854,1727040637655,-2820.66603228,0.00012076,2]
[338900855,1727040637666,-4471.4931222,0.00012076,2]
[338900856,1727040637675,-8638.6631751,0.00012076,2]
[338900857,1727040637684,-7778.0886727,0.00012076,2]
[338900858,1727040637693,-2284.7521273,0.00012076,2]
[338900859,1727040637702,-2057.1475332,0.00012076,2]
[338900860,1727040637711,-306.3552639,0.00012076,2]
[338900861,1727040637721,-275.836476,0.00012076,2]
[338900862,1727040637734,-11159.4643895,0.0001208,2]
[338900863,1727040637745,-1656.07732759,0.0001208,2]
[338900864,1727040637756,-18380.47787291,0.0001208,2]
[338900865,1727040637767,-1682.74138119,0.0001208,2]
[338900866,1727040637778,-436.91727576,0.0001208,2]
[338900867,1727040637798,-325.88,0.0001208,2]
[338900885,1727040639473,-605.53160229,0.0001208,2]
[338900886,1727040639485,-332.2509382,0.0001208,2]
[338900887,1727040639538,-40424.31189806,0.0001208,2]
[338901045,1727040642538,-26784.30423808,0.0001208,2]
[338901046,1727040642548,-1000.0,0.0001208,2]
[338901047,1727040642558,-1000.0,0.0001208,2]
[338901048,1727040642568,-1000.0,0.0001208,2]
[338901049,1727040642577,-1000.0,0.0001208,2]
[338901050,1727040642587,-1000.0,0.0001208,2]
[338901051,1727040642596,-1000.0,0.0001208,2]
[338901052,1727040642607,-1000.0,0.0001208,2]
[338901053,1727040642617,-1000.0,0.0001208,2]
[338901054,1727040642627,-1000.0,0.0001208,2]
[338901055,1727040642636,-1000.0,0.0001208,2]
[338901056,1727040642646,-1000.0,0.0001208,2]
[338901057,1727040642655,-1000.0,0.0001208,2]
[338901058,1727040642665,-1000.0,0.0001208,2]
[338901059,1727040642674,-1000.0,0.0001208,2]
[338901060,1727040642684,-1000.0,0.0001208,2]
[338901061,1727040642694,-1000.0,0.0001208,2]
[338901062,1727040642703,-1000.0,0.0001208,2]
[338901063,1727040642713,-1000.0,0.0001208,2]
[338901064,1727040642723,-1000.0,0.0001208,2]
[338901065,1727040642736,-1000.0,0.0001208,2]
[338901066,1727040642745,-1000.0,0.0001208,2]
[338901067,1727040642755,-1000.0,0.0001208,2]
[338901069,1727040642764,-1000.0,0.0001208,2]
[338901070,1727040642774,-669.51036098,0.0001208,2]
[338901071,1727040642784,-14880.12,0.0001208,2]
[338901072,1727040642793,-14719.14,0.0001208,2]
[338901073,1727040642803,-2000.0,0.0001208,2]
[338901074,1727040642813,-200.0,0.0001208,2]
[338901075,1727040642826,-44271.80221466,0.0001208,2]
[338901077,1727040645432,-755.257,0.0001208,2]
[338901078,1727040645545,-2538.22896,0.0001208,2]
[338901083,1727040650763,1500.0,0.00012001,2]
[338901084,1727040650794,150.0,0.00011837,2]
[338901085,1727040650906,1500.0,0.0001186,2]
[338901086,1727040651045,150.0,0.00011833,2]
[338901087,1727040651096,150.0,0.00011939,2]
[338901088,1727040651158,300.0,0.00012021,2]
[338901089,1727040651209,1359.87143842,0.00012002,2]
[338901090,1727040656346,12326.41,0.00011187,2]
[338901091,1727040658135,1500.0,0.00011856,2]
[338901093,1727040671677,250.0,0.00011225,2]
[338901094,1727040677976,300.0,0.000112,4]
[338901095,1727040680087,600.0,0.000113,4]
[338901096,1727040682800,900.0,0.000114,4]
[338901097,1727040684470,187.019136,0.000119,2]
[338901098,1727040685020,1300.0,0.000115,4]
[338901099,1727040687316,1600.0,0.000116,4]
[338901100,1727040688831,2354.24936244,0.00011885,2]
[338901101,1727040689490,300.0,0.000117,4]
[338901102,1727040691647,300.0,0.000118,4]
[338901103,1727040693809,300.0,0.000119,4]
[338901104,1727040696890,1500.0,0.0001197,2]
[338901105,1727040698914,1500.0,0.00011178,2]
[338901106,1727040724434,386.39900272,0.00011982,2]
[338901107,1727040729244,386.39900272,0.00011982,2]
[338901108,1727040734226,386.39900272,0.00011983,2]
[338901109,1727040739236,386.39900272,0.00011983,2]
[338901110,1727040744253,386.39900272,0.00011983,2]
[338901111,1727040749289,386.39900272,0.00011984,2]
[338901112,1727040754222,386.39900272,0.00011984,2]
[338901113,1727040759258,386.39900272,0.00011984,2]
[338901114,1727040762756,8073.3963,0.00011982,2]
[338901115,1727040764243,386.39900272,0.00011985,2]
[338901116,1727040769275,386.39900272,0.00011985,2]
[338901117,1727040770338,357.16355346,0.00011985,2]
[338901118,1727040776487,469.3346,0.00011975,2]
[338901119,1727040784291,1894.11884079,0.00011985,2]
[338901120,1727040794538,328.0,0.00011155,2]
[338901121,1727040802127,250.0,0.00011155,2]
[338901122,1727040802376,150.0,0.00011919,2]
[338901123,1727040802407,150.0,0.00011965,2]
[338901124,1727040802437,150.0,0.00011997,2]
[338901125,1727040802475,150.0,0.00011939,2]
[338901126,1727040802537,150.0,0.00011834,2]
[338901127,1727040802596,150.0,0.00011838,2]
[338901128,1727040802647,150.0,0.0001192,2]
[338901129,1727040803083,500.0,0.00022,120]
[338901130,1727040811416,500.0,0.00022,120]
[338901131,1727040814938,500.0,0.00011983,2]
[338901132,1727040822984,168.81,0.00011155,2]
[338901133,1727040882666,177.36,0.00010959,2]
[338901134,1727040884099,187.77,0.00011144,2]
[338901135,1727041001464,500.0,8.249e-05,2]
[338901136,1727041001537,500.0,8.249e-05,2]
[338901137,1727041016675,2077.7187,0.00011982,2]
[338901138,1727041025146,500.0,8.249e-05,2]
[338901139,1727041026973,20675.2595,0.00011982,2]
[338901140,1727041036812,1113.1381,0.00011982,2]
[338901141,1727041048729,500.0,8.249e-05,2]
[338901142,1727041056964,294.52,0.00011144,2]
[338901143,1727041128575,500.0,0.00011144,2]
[338901144,1727041129506,500.0,0.00011144,2]
[338901145,1727041129850,500.0,0.00011144,2]
[338901146,1727041130197,500.0,0.00011144,2]
[338901147,1727041130519,500.0,0.00011144,2]
[338901148,1727041131218,668.0,0.00011144,2]
[338901149,1727041131532,500.0,0.00011144,2]
[338901150,1727041131847,500.0,0.00011144,2]
[338901151,1727041132190,500.0,0.00011144,2]
[338901152,1727041132508,669.0,0.00011144,2]
[338901153,1727041179149,150.02062704,0.00011985,2]
[338901154,1727041184114,150.02062704,0.00011989,2]
[338901155,1727041189103,150.02062704,0.00011992,2]
[338901156,1727041242623,250.0,0.00011146,2]
[338901157,1727041245390,212.79,9.228e-05,2]
[338901158,1727041245733,212.79,0.00011492,2]
[338901159,1727041284931,170.41624941,0.00021,60]
[338901160,1727041296328,1500.0,0.00011987,2]
[338901161,1727041305891,250.00000001,0.00012031,2]
[338901162,1727041308254,1500.0,0.00011169,2]
[338901163,1727041367663,250.0,0.0001118,2]
[338901165,1727041425301,732.75604716,0.00011973,2]
[338901167,1727041429544,156.44,0.00010959,2]
[338901177,1727041498487,867.76,0.0001118,2]
[338901178,1727041542137,1000.0,0.00011208,2]
[338901181,1727041611167,150.0,0.00011917,2]
[338901182,1727041611239,150.0,0.00011873,2]
[338901183,1727041611363,300.0,0.00011903,2]
[338901187,1727041667890,170.92,8.928e-05,2]
[338901188,1727041719531,4004.5805,0.00011982,2]
[338901189,1727041728488,274.23,0.00011177,2]
[338901206,1727041800731,250.0,0.00011163,2]
[338901207,1727041802525,250.0,0.00011163,2]
[338901208,1727041804974,271.58912054,0.00011983,2]
[338901209,1727041815850,175.39910848,0.00011985,2]
[338901210,1727041831231,273.69,0.00011177,2]
[338901218,1727041831773,-150.0,0.00012072,2]
[338901219,1727041831782,-300.0,0.00012072,2]
[338901220,1727041831791,-500.0,0.00012073,2]
[338901221,1727041831801,-485.23226309,0.00012073,2]
[338901222,1727041831818,-14.76773691,0.00012073,2]
[338901223,1727041831828,-690.15487741,0.00012073,2]
[338901224,1727041831839,-2138.831207,0.00012073,2]
[338901225,1727041831850,-653.18224521,0.00012073,2]
[338901226,1727041831861,-3100.0,0.00012073,2]
[338901227,1727041831872,-597.86703799,0.00012073,2]
[338901228,1727041831887,-6301.39120079,0.00012073,2]
[338901229,1727041831897,-2589.8757578,0.00012073,2]
[338901230,1727041831906,-155.99,0.00012074,2]
[338901231,1727041831915,-425.472,0.00012075,2]
[338901232,1727041831925,-4535.05676957,0.00012075,2]
[338901233,1727041831934,-16934.9363665,0.00012076,2]
[338901234,1727041831943,-20388.4461646,0.00012076,2]
[338901235,1727041831953,-3253.3189966,0.00012076,2]
[338901236,1727041831962,-3916.7622353,0.00012076,2]
[338901237,1727041831971,-224.57554127,0.00012079,2]
[338901238,1727041831980,-10343.4375374,0.00012079,2]
[338901239,1727041831990,-2697.19504219,0.0001208,2]
[338901241,1727041832002,-18311.39010822,0.0001208,2]
[338901243,1727041832011,-1262.0,0.00012081,2]
[338901244,1727041832020,-450.493,0.00012081,2]
[338901246,1727041832030,-637.515,0.00012081,2]
[338901248,1727041832039,-1438.60173828,0.00012081,2]
[338901251,1727041832054,-110.39826172,0.00012081,2]
[338901252,1727041832064,-562.714,0.00012081,2]
[338901253,1727041832073,-817.695,0.00012081,2]
[338901254,1727041832083,-150.491,0.00012081,2]
[338901255,1727041832092,-933.0,0.00012081,2]
[338901256,1727041832101,-1903.0,0.00012081,2]
[338901257,1727041832111,-553.0,0.00012081,2]
[338901258,1727041832120,-3347.0,0.00012081,2]
[338901259,1727041832129,-806.0,0.00012081,2]
[338901260,1727041832139,-248.0,0.00012081,2]
[338901261,1727041832148,-1913.0,0.00012081,2]
[338901262,1727041832158,-150.0,0.00012081,2]
[338901263,1727041832167,-150.0,0.00012081,2]
[338901264,1727041832176,-5941.022,0.00012081,2]
[338901265,1727041832185,-13492.0,0.00012081,2]
[338901266,1727041832195,-150.0,0.00012081,2]
[338901267,1727041832204,-1147.0,0.00012081,2]
[338901268,1727041832214,-5824.59744428,0.00012082,2]
[338901269,1727041832225,-24702.59061217,0.00012082,2]
[338901270,1727041832235,-29999.99,0.00012082,2]
[338901271,1727041832244,-769.69,0.00012082,2]
[338901272,1727041832254,-499.99,0.00012082,2]
[338901273,1727041832263,-24421.75044516,0.00012082,2]
[338901274,1727041832273,-582.0,0.00012082,2]
[338901275,1727041832282,-100193.0,0.00012082,2]